bitfinex/quotes_ETHUSD_20220117
["timestamp","ask_amount","ask_price","bid_price","bid_amount"]
[1642394651120,0.00113684,3267.2,3266.5,0.00284212]
[1642394651316,0.00113684,3267.2,3266.4,1.08547585]
[1642394651317,0.00113684,3267.2,3266.7,0.00170527]
[1642394651519,0.00113684,3267.2,3266.5,0.00284212]
[1642394653322,0.03660822,3267.1,3266.5,0.00284212]
[1642394653520,0.00113684,3267.2,3266.6,0.02743768]
[1642394653720,0.00113684,3267.2,3266.5,0.00284212]
[1642394653922,0.00113684,3267.2,3266.7,0.00170527]
[1642394654119,0.00113684,3267.2,3266.5,0.00284212]
[1642394657268,0.01032915,3267.1,3266.5,0.00284212]
[1642394657467,5.37630596,3267.1,3266.5,0.00284212]
[1642394657666,1.0,3267.0,3266.2,0.00454739]
[1642394657866,5.37326949,3266.9,3266.2,0.00454739]
[1642394658065,0.01320619,3266.8,3266.2,0.00454739]
[1642394658266,0.3,3266.9,3266.2,1.51568243]
[1642394658535,0.3,3266.9,3266.3,0.05270189]
[1642394658721,0.3,3266.9,3266.3,0.05668086]
[1642394658922,0.3,3266.9,3266.3,0.00397897]
[1642394659128,0.3,3266.9,3266.4,0.00341054]
[1642394659322,0.01377202,3266.8,3266.3,0.00397897]
[1642394659525,0.6,3266.9,3266.0,16.28822576]
[1642394659723,0.0022737,3266.7,3266.2,1.27495472]
[1642394659923,0.00284212,3266.8,3266.2,1.27495472]
[1642394660122,0.00170527,3266.6,3266.2,1.27495472]
[1642394660322,0.0022737,3266.7,3266.2,1.27495472]
[1642394660523,0.00113685,3266.5,3266.3,0.04135358]
[1642394660724,0.00170527,3266.6,3266.3,0.04135358]
[1642394660926,0.00284212,3266.8,3266.2,1.27495472]
[1642394661128,0.00113685,3266.5,3266.2,1.27495472]
[1642394661324,0.0022737,3266.7,3266.2,1.27495472]
[1642394661524,0.3,3266.9,3266.2,1.27495472]
[1642394661525,0.00284212,3266.8,3266.2,1.27495472]
[1642394661724,0.00170527,3266.6,3266.2,1.27495472]
[1642394661928,0.0022737,3266.7,3266.2,1.27495472]
[1642394662126,0.00113685,3266.5,3266.2,1.27495472]
[1642394662365,0.00600075,3266.4,3266.2,1.27495472]
[1642394662566,4.50284212,3266.8,3266.2,1.27495472]
[1642394662967,5.32579422,3266.7,3266.1,0.00113684]
[1642394663168,1.00347878,3266.6,3266.1,0.00113684]
[1642394663370,1.30170527,3266.6,3266.0,0.00170527]
[1642394663570,0.00113685,3266.5,3266.0,0.00170527]
[1642394663769,0.30113685,3266.5,3266.0,0.00170527]
[1642394663970,5.92653443,3266.5,3266.0,0.00170527]
[1642394664168,1.0,3266.4,3266.0,0.00170527]
[1642394664366,0.441,3266.3,3265.7,0.00341054]
[1642394664567,0.741,3266.3,3265.7,0.00341054]
[1642394664765,0.741,3266.3,3265.3,0.00568423]
[1642394665168,0.01315657,3266.2,3265.5,0.98866211]
[1642394665366,0.44611581,3266.2,3265.1,1.47518763]
[1642394665666,0.00454739,3266.1,3265.1,1.47518763]
[1642394665868,0.0153756,3266.0,3265.0,1.1828]
[1642394666132,0.0181379,3266.0,3265.0,1.1828]
[1642394666334,0.00341054,3265.9,3265.1,0.00113685]
[1642394666730,0.00284212,3265.8,3265.1,0.00113685]
[1642394666931,0.00284212,3265.8,3265.4,0.9810241]
[1642394667129,0.00227369,3265.7,3265.4,0.9810241]
[1642394667331,0.00227369,3265.7,3265.5,0.01455677]
[1642394667530,0.00170527,3265.6,3265.5,0.01455677]
[1642394667729,0.00170527,3265.6,3265.4,0.9810241]
[1642394668129,0.00113685,3265.5,3265.4,0.9810241]
[1642394668332,0.00113685,3265.5,3265.4,8.4810241]
[1642394668531,0.00113685,3265.5,3265.4,9.64240939]
[1642394669330,0.00113685,3265.5,3265.4,13.74240939]
[1642394669768,0.00113685,3265.5,3265.4,9.64240939]
[1642394670165,0.00113685,3265.5,3265.4,15.94240939]
[1642394671965,0.00113685,3265.5,3265.4,9.64240939]
[1642394673170,0.00113685,3265.5,3265.4,16.39240939]
[1642394673825,0.00113685,3265.5,3265.4,9.64240939]
[1642394674629,0.03660822,3266.1,3266.0,0.82839529]
[1642394674928,0.03660822,3266.1,3265.4,1.16138529]
[1642394674929,0.00341054,3266.1,3265.4,1.16138529]
[1642394675229,0.00284211,3266.0,3265.4,1.16138529]
[1642394675430,0.03660822,3265.9,3265.4,1.16138529]
[1642394675628,0.00227369,3265.9,3265.4,1.16138529]
[1642394675829,0.00170527,3265.8,3265.5,1.0810665]
[1642394676030,0.00170527,3265.8,3265.6,0.05734588]
[1642394676230,0.00113684,3265.7,3265.5,1.0810665]
[1642394676633,0.00284211,3266.0,3265.5,1.0810665]
[1642394677031,0.00227369,3265.9,3265.5,1.0810665]
[1642394677468,0.00170527,3265.8,3265.5,1.0810665]
[1642394677868,0.00113684,3265.7,3265.5,1.0810665]
[1642394681729,0.00113684,3265.7,3265.5,19.0610665]
[1642394686474,0.3,3266.4,3265.6,14.05]
[1642394686675,0.3,3266.4,3266.3,1.51496083]
[1642394686973,0.30397897,3266.4,3266.3,1.51496083]
[1642394687775,0.30397897,3266.4,3266.2,0.98163425]
[1642394687973,0.00397897,3266.4,3266.2,0.98163425]
[1642394688175,3.45113684,3266.5,3266.2,0.98163425]
[1642394688176,0.00341054,3266.3,3266.2,0.98163425]
[1642394688623,0.00341054,3266.3,3265.6,4.2367]
[1642394688822,0.00341054,3266.3,3265.8,1.10432764]
[1642394689021,0.00284212,3266.2,3265.8,1.10432764]
[1642394689418,0.0022737,3266.1,3265.8,1.10432764]
[1642394689618,0.0022737,3266.1,3265.9,0.02160395]
[1642394689827,6.18,3266.9,3266.1,0.02525481]
[1642394690019,1.0,3266.8,3266.0,5.22592516]
[1642394690220,0.00568424,3266.7,3266.0,5.22592516]
[1642394690718,0.03660822,3266.5,3266.0,1.12592516]
[1642394691218,0.74172403,3266.8,3266.1,0.00284211]
[1642394692290,6.48,3266.9,3266.2,0.08988168]
[1642394692480,6.48,3266.9,3266.1,0.00284211]
[1642394692481,6.78,3266.9,3266.1,0.00284211]
[1642394692677,0.00113685,3266.8,3266.3,0.00170527]
[1642394692876,1.00113685,3266.8,3266.1,0.00284211]
[1642394693278,1.30113685,3266.8,3266.1,0.00284211]
[1642394696022,1.30113685,3266.8,3266.5,1.00198543]
[1642394696423,1.30113685,3266.8,3266.6,0.05812058]
[1642394696823,1.30113685,3266.8,3266.1,0.00284211]
[1642394697226,1.30113685,3266.8,3265.9,0.00397896]
[1642394697829,1.30113685,3266.8,3266.3,1.10660453]
[1642394698127,1.30113685,3266.8,3266.4,0.00113684]
[1642394698327,0.00113685,3266.8,3266.4,0.00113684]
[1642394699427,0.00113685,3266.8,3266.5,1.14945543]
[1642394699627,0.00113685,3266.8,3266.5,1.09288355]
[1642394701670,0.00113685,3266.8,3266.4,0.00113684]
[1642394702069,0.00113685,3266.8,3266.1,0.00284211]
[1642394703070,0.00113685,3266.8,3266.2,0.09795791]
[1642394703272,0.00113685,3266.8,3266.1,0.00284211]
[1642394703526,0.00113685,3266.8,3266.3,0.00170527]
[1642394703718,0.00113685,3266.8,3266.1,0.00284211]
[1642394704119,1.00113685,3266.8,3266.1,0.00284211]
[1642394704320,5.70668744,3266.7,3266.1,0.00284211]
[1642394704520,6.00668744,3266.7,3266.1,0.00284211]
[1642394705422,1.0,3266.6,3266.1,0.00284211]
[1642394705619,5.33004339,3266.5,3266.1,0.00284211]
[1642394705818,6.83141323,3266.5,3266.1,0.00284211]
[1642394706419,6.83141323,3266.5,3265.8,0.00454738]
[1642394707023,6.83141323,3266.5,3265.9,0.07890544]
[1642394707281,5.63004339,3266.5,3265.8,0.00454738]
[1642394707479,5.63004339,3266.5,3266.0,0.00341054]
[1642394707679,1.0,3266.4,3266.1,0.06178214]
[1642394707878,1.0,3266.4,3266.0,0.00341054]
[1642394708082,1.0,3266.4,3265.6,3.0871]
[1642394708083,0.3,3266.5,3266.2,0.00227369]
[1642394708280,5.55881455,3266.5,3265.8,0.00454738]
[1642394708478,5.55881455,3266.5,3265.7,0.00511581]
[1642394708479,6.49622898,3266.5,3265.7,0.00511581]
[1642394708678,1.0,3266.4,3265.7,0.00511581]
[1642394708879,1.3,3266.4,3265.7,0.00511581]
[1642394709080,1.6,3266.4,3265.7,0.00511581]
[1642394709280,1.6,3266.4,3266.0,1.6047536]
[1642394709685,0.3,3266.4,3266.1,0.00284211]
[1642394709882,3.57769425,3267.0,3266.2,15.1]
[1642394710085,4.50450968,3267.2,3266.9,0.01274972]
[1642394710086,1.0,3267.2,3266.9,0.01274972]
[1642394710383,1.0,3267.2,3266.9,1.04784972]
[1642394710384,0.00113685,3267.0,3266.9,1.04784972]
[1642394710781,0.00113685,3267.0,3266.9,12.39784972]
[1642394711427,0.00113685,3267.0,3266.9,12.3851]
[1642394711629,6.18,3268.1,3267.0,21.5]
[1642394711829,6.18,3268.1,3267.1,17.98]
[1642394712027,0.00454738,3267.8,3267.1,17.98]
[1642394712427,0.00397896,3267.7,3267.1,17.98]
[1642394712827,0.00341054,3267.6,3267.1,17.98]
[1642394713131,6.18,3268.1,3267.1,17.98]
[1642394713132,0.00284211,3267.5,3267.1,17.98]
[1642394713327,0.00284211,3267.5,3267.2,0.82104163]
[1642394713528,0.00227369,3267.4,3267.3,23.78]
[1642394717789,0.00227369,3267.4,3267.3,5.8]
[1642394717990,0.00227369,3267.4,3267.3,11.20106522]
[1642394718653,7.369e-05,3267.4,3267.3,44.88106522]
[1642394718840,7.369e-05,3267.4,3267.3,29.1938166]
[1642394719628,7.369e-05,3267.4,3267.3,33.5938166]
[1642394719829,7.369e-05,3267.4,3267.3,34.3961934]
[1642394720031,7.369e-05,3267.4,3267.3,35.1985702]
[1642394720331,7.369e-05,3267.4,3267.3,7.4047536]
[1642394720828,7.369e-05,3267.4,3267.3,15.5047536]
[1642394721429,7.369e-05,3267.4,3267.3,20.96588177]
[1642394721628,7.369e-05,3267.4,3267.3,25.36588177]
[1642394722277,7.369e-05,3267.4,3267.3,19.9047536]
[1642394722475,7.369e-05,3267.4,3267.3,37.8847536]
[1642394723774,7.369e-05,3267.4,3267.3,19.9047536]
[1642394724578,7.369e-05,3267.4,3267.3,23.1047536]
[1642394725077,7.369e-05,3267.4,3267.3,41.0847536]
[1642394725482,7.369e-05,3267.4,3267.3,37.8847536]
[1642394725677,7.369e-05,3267.4,3267.3,19.9047536]
[1642394727526,7.369e-05,3267.4,3267.3,23.1047536]
[1642394729768,7.369e-05,3267.4,3267.3,19.9047536]
[1642394730269,7.369e-05,3267.4,3267.3,15.5047536]
[1642394731569,7.369e-05,3267.4,3267.3,21.8547536]
[1642394731969,7.369e-05,3267.4,3267.3,15.5047536]
[1642394732572,7.369e-05,3267.4,3267.3,22.2047536]
[1642394736724,7.369e-05,3267.4,3267.3,40.1847536]
[1642394743823,6.18,3268.1,3267.3,33.4847536]
[1642394744024,6.48,3268.1,3267.3,33.4847536]
[1642394744328,0.00348423,3268.0,3267.7,0.8023768]
[1642394744625,0.00291581,3267.9,3267.7,1.6047536]
[1642394745076,0.00234738,3267.8,3267.7,1.6047536]
[1642394745475,0.00234738,3267.8,3267.7,10.1047536]
[1642394747475,0.00234738,3267.8,3267.7,16.4047536]
[1642394747875,0.00234738,3267.8,3267.7,10.1047536]
[1642394748079,0.00234738,3267.8,3267.7,28.0847536]
[1642394748527,6.18,3268.1,3267.8,20.3]
[1642394748720,6.18,3268.1,3267.9,17.98]
[1642394748923,0.00113685,3268.0,3267.9,17.98]
[1642394749620,0.00113685,3268.0,3267.9,18.7823768]
[1642394750022,0.00113685,3268.0,3267.9,19.5847536]
[1642394750927,3.9145,3268.7,3268.6,1.52957]
[1642394750928,2.38606685,3268.7,3268.6,1.52957]
[1642394751125,6.18,3269.1,3268.7,0.05552519]
[1642394751324,6.18,3269.1,3268.7,0.82037519]
[1642394751725,6.18,3269.1,3268.7,0.76485]
[1642394752772,6.18,3269.1,3268.8,0.05295622]
[1642394752971,6.18,3269.1,3268.7,0.76485]
[1642394753971,6.18,3269.1,3268.8,0.08516817]
[1642394754371,6.18,3269.1,3268.6,1.52957]
[1642394754972,6.18,3269.1,3268.9,0.8023768]
[1642394755371,6.18,3269.1,3268.9,1.6047536]
[1642394756556,6.78,3269.1,3268.9,1.6047536]
[1642394756950,6.48,3269.1,3268.9,1.6047536]
[1642394758150,5.35,3269.0,3268.9,1.6047536]
[1642394758352,1.0,3269.0,3268.9,1.6047536]
[1642394761775,9.71523366,3269.0,3268.9,1.6047536]
[1642394761974,10.15623366,3269.0,3268.9,1.6047536]
[1642394762173,24.70712707,3269.0,3268.9,1.6047536]
[1642394762376,18.34015718,3269.0,3268.9,1.6047536]
[1642394762571,20.73721527,3269.0,3268.9,1.6047536]
[1642394763822,4.13805809,3269.0,3268.9,1.6047536]
[1642394764223,12.08805809,3269.0,3268.9,1.6047536]
[1642394764422,1.741,3269.0,3268.9,1.6047536]
[1642394765124,13.74143594,3269.0,3268.9,1.6047536]
[1642394766125,8.541,3269.0,3268.9,1.6047536]
[1642394770376,1.741,3269.0,3268.9,1.6047536]
[1642394771426,0.441,3269.0,3268.9,1.6047536]
[1642394771925,0.391,3269.0,3268.9,1.6047536]
[1642394772926,1.691,3269.0,3268.9,1.6047536]
[1642394774125,1.3,3269.0,3268.9,1.6047536]
[1642394779029,4.3,3269.0,3268.9,1.6047536]
[1642394781031,3.0,3269.0,3268.9,1.6047536]
[1642394783973,4.0,3269.0,3268.9,1.6047536]
[1642394787523,3.98253067,3269.0,3268.9,1.6047536]
[1642394791782,4.28253067,3269.0,3268.9,1.6047536]
[1642394791983,9.51745792,3269.0,3268.9,1.6047536]
[1642394792287,11.78824699,3269.0,3268.9,1.6047536]
[1642394792882,14.1851965,3269.0,3268.9,1.6047536]
[1642394793822,5.02353067,3269.0,3268.9,1.6047536]
[1642394796831,4.42353067,3269.0,3268.9,1.6047536]
[1642394798480,4.40353067,3269.0,3268.9,1.6047536]
[1642394806374,3.96253067,3269.0,3268.9,1.6047536]
[1642394818831,4.26253067,3269.0,3268.9,1.6047536]
[1642394819029,5.00353067,3269.0,3268.9,1.6047536]
[1642394819882,4.70353067,3269.0,3268.9,1.6047536]
[1642394821279,4.40353067,3269.0,3268.9,1.6047536]
[1642394821478,4.70353067,3269.0,3268.9,1.6047536]
[1642394825831,4.70353067,3269.0,3268.9,1.6006872]
[1642394826032,4.70353067,3269.0,3268.9,0.8023768]
[1642394826432,4.70353067,3269.0,3268.9,1.6006872]
[1642394827680,5.00353067,3269.0,3268.9,1.6006872]
[1642394827880,6.14964582,3269.0,3268.9,1.6006872]
[1642394828481,5.84964582,3269.0,3268.9,1.6006872]
[1642394830380,6.14964582,3269.0,3268.9,1.6006872]
[1642394831428,5.00353067,3269.0,3268.9,1.6006872]
[1642394834029,3.40353067,3269.0,3268.9,1.6006872]
[1642394835979,3.70353067,3269.0,3268.9,1.6006872]
[1642394836176,4.70353067,3269.0,3268.9,1.6006872]
[1642394837279,4.26253067,3269.0,3268.9,1.6006872]
[1642394839435,2.96253067,3269.0,3268.9,12.4845631]
[1642394839632,2.96253067,3269.0,3268.9,7.0506872]
[1642394841436,2.96253067,3269.0,3268.9,1.6006872]
[1642394845680,3.96253067,3269.0,3268.9,1.6006872]
[1642394847131,4.56253067,3269.0,3268.9,1.6006872]
[1642394847330,3.96253067,3269.0,3268.9,1.6006872]
[1642394847531,4.26253067,3269.0,3268.9,1.6006872]
[1642394848134,2.96253067,3269.0,3268.9,1.6006872]
[1642394852286,2.96253067,3269.0,3268.9,6.1006872]
[1642394852986,2.96253067,3269.0,3268.9,1.6006872]
[1642394854235,3.96253067,3269.0,3268.9,1.6006872]
[1642394854836,4.26253067,3269.0,3268.9,1.6006872]
[1642394859178,4.26253067,3269.0,3268.9,8.1006872]
[1642394859781,2.96253067,3269.0,3268.9,8.1006872]
[1642394861035,2.96253067,3269.0,3268.9,12.6506872]
[1642394861937,2.96253067,3269.0,3268.9,8.1006872]
[1642394863538,2.96253067,3269.0,3268.9,13.50764532]
[1642394863939,2.96253067,3269.0,3268.9,1.6006872]
[1642394865993,2.96253067,3269.0,3268.9,6.1006872]
[1642394870031,2.96253067,3269.0,3268.9,12.8006872]
[1642394871735,2.96253067,3269.0,3268.9,18.37640309]
[1642394871935,2.96253067,3269.0,3268.9,25.22640309]
[1642394872990,6.18,3269.9,3269.0,39.48]
[1642394873196,6.18,3269.9,3269.3,1.52893]
[1642394873397,0.00909478,3269.6,3269.4,6.07742734]
[1642394873792,6.18,3269.9,3269.5,34.73]
[1642394873991,6.18,3269.9,3269.6,5.51106744]
[1642394874194,0.00113684,3269.8,3269.6,24.25550744]
[1642394874389,0.00113684,3269.8,3269.7,0.67170899]
[1642394874589,0.00113684,3269.8,3269.7,9.92170899]
[1642394874789,0.00113684,3269.8,3269.7,15.15809446]
[1642394874992,0.00113684,3269.8,3269.7,9.92170899]
[1642394875790,0.00113684,3269.8,3269.7,15.10338122]
[1642394876839,0.00113684,3269.8,3269.7,15.32170899]
[1642394878133,0.00113684,3269.8,3269.7,20.50775261]
[1642394878333,0.00113684,3269.8,3269.7,15.32170899]
[1642394878533,0.00113684,3269.8,3269.7,20.65083749]
[1642394878734,0.00113684,3269.8,3269.7,21.44914789]
[1642394878935,0.00113684,3269.8,3269.7,16.92239619]
[1642394880083,3.00113684,3269.8,3269.7,10.8506872]
[1642394880989,3.00113684,3269.8,3269.7,1.6006872]
[1642394881184,0.00113684,3269.8,3269.7,1.6006872]
[1642394881783,0.00113684,3269.8,3269.7,9.0506872]
[1642394887894,0.00113684,3269.8,3269.7,1.6006872]
[1642394891249,0.44213684,3269.8,3269.7,1.6006872]
[1642394892444,1.61828733,3269.8,3269.7,1.6006872]
[1642394892643,2.90815372,3269.8,3269.7,1.6006872]
[1642394893446,2.90815372,3269.8,3269.0,15.003]
[1642394893447,10.2984472,3269.8,3269.0,15.003]
[1642394893647,1.53006,3269.6,3269.0,15.003]
[1642394893847,0.441,3269.5,3269.1,0.00284212]
[1642394894249,1.5554,3269.5,3269.1,0.00284212]
[1642394894451,1.441,3269.5,3269.1,0.00284212]
[1642394894649,2.39675653,3269.4,3269.1,0.00284212]
[1642394894899,0.441,3269.3,3269.1,0.00284212]
[1642394895091,0.76509,3269.2,3269.1,0.00284212]
[1642394895289,12.4,3269.1,3269.0,13.39494212]
[1642394895494,12.4,3269.1,3267.8,3.7253]
[1642394895495,16.79953823,3269.1,3267.8,3.7253]
[1642394895792,17.92513823,3269.1,3267.8,3.7253]
[1642394895988,1.72,3269.0,3267.9,0.00682108]
[1642394896188,0.76518,3268.7,3267.9,0.00682108]
[1642394896389,0.741,3268.6,3267.9,0.00682108]
[1642394896589,1.82252185,3268.5,3267.9,0.00682108]
[1642394896791,0.441,3268.4,3267.9,0.00682108]
[1642394896990,0.741,3268.4,3267.9,0.00682108]
[1642394897396,1.741,3268.4,3267.7,0.00795793]
[1642394897591,2.5062,3268.4,3267.7,0.00795793]
[1642394900542,2.5062,3268.4,3267.8,0.05112166]
[1642394900740,2.5062,3268.4,3267.7,0.00795793]
[1642394901341,2.86537304,3268.4,3267.7,0.00795793]
[1642394901744,5.86537304,3268.4,3267.7,0.00795793]
[1642394902144,4.80017304,3268.4,3267.7,0.00795793]
[1642394902394,4.441,3268.4,3267.8,0.08038366]
[1642394902600,4.441,3268.4,3267.7,0.00795793]
[1642394903392,4.441,3268.4,3267.7,0.77297793]
[1642394903589,4.441,3268.4,3267.8,0.05616756]
[1642394903793,3.441,3268.4,3267.8,0.06355707]
[1642394903992,3.0,3268.4,3267.9,1.52981]
[1642394904189,3.0,3268.4,3268.0,6.2802549]
[1642394904389,3.0,3268.4,3268.0,6.28650756]
[1642394904589,3.0,3268.4,3268.1,0.77054423]
[1642394904789,3.0,3268.4,3268.1,1.53539423]
[1642394904990,3.0,3268.4,3268.2,5.77678572]
[1642394905294,3.0,3268.4,3268.3,16.95454739]
[1642394905490,2.5208,3268.4,3268.3,23.04417338]
[1642394906436,2.5208,3268.4,3268.3,24.21360749]
[1642394907840,2.5208,3268.4,3268.3,23.04417338]
[1642394908640,2.5208,3268.4,3268.3,0.00454739]
[1642394909244,2.5208,3268.4,3268.2,5.69246178]
[1642394909442,2.5208,3268.4,3268.2,5.65491271]
[1642394909890,2.5208,3268.4,3268.2,0.35708538]
[1642394910289,2.5208,3268.4,3268.2,5.61711078]
[1642394910493,2.5208,3268.4,3268.2,5.78656127]
[1642394910785,2.5208,3268.4,3268.2,5.61766309]
[1642394911587,1.3,3269.6,3268.2,5.61766309]
[1642394911789,1.3,3269.6,3268.6,0.7648]
[1642394911988,0.00682108,3269.5,3268.6,0.7648]
[1642394912191,0.00682108,3269.5,3268.6,5.99602363]
[1642394912394,1.3,3269.6,3268.6,0.7648]
[1642394912395,0.00625266,3269.4,3268.6,0.7648]
[1642394912791,0.00568424,3269.3,3268.6,0.7648]
[1642394913092,0.00511581,3269.2,3268.6,0.7648]
[1642394913547,0.00454739,3269.1,3268.6,0.7648]
[1642394913945,0.00397897,3269.0,3268.6,0.7648]
[1642394914148,0.00397897,3269.0,3268.6,6.07026467]
[1642394914366,1.3,3269.6,3268.6,0.7648]
[1642394914367,0.00341054,3268.9,3268.6,0.7648]
[1642394914746,0.00284212,3268.8,3268.6,0.7648]
[1642394915147,0.0022737,3268.7,3268.6,19.59990003]
[1642394915347,0.0022737,3268.7,3268.6,19.6980637]
[1642394915847,3.9772,3269.7,3268.7,18.45]
[1642394916047,3.9772,3269.7,3269.0,0.76465]
[1642394916247,0.00511581,3269.6,3269.1,5.37484459]
[1642394916650,0.00454738,3269.5,3269.1,5.37484459]
[1642394917148,0.00397896,3269.4,3269.1,5.37484459]
[1642394917601,0.00341054,3269.3,3269.1,5.37484459]
[1642394917994,0.00284211,3269.2,3269.0,2.26575554]
[1642394918199,0.00284211,3269.2,3269.1,5.33183791]
[1642394918396,0.28986639,3269.8,3269.1,5.33183791]
[1642394918595,0.28986639,3269.8,3269.2,0.76465]
[1642394918896,1.3,3269.9,3269.2,0.76465]
[1642394918897,1.0,3269.9,3269.2,0.76465]
[1642394919095,1.0,3269.9,3269.3,0.00227369]
[1642394919996,1.0,3269.9,3269.4,0.06715403]
[1642394920201,1.3,3269.9,3269.3,6.12194403]
[1642394920499,1.0,3270.3,3269.6,0.76453]
[1642394921043,0.00113685,3269.9,3269.7,5.24517357]
[1642394921342,0.00511581,3270.6,3269.8,11.67543437]
[1642394921545,0.00511581,3270.6,3270.0,0.76433]
[1642394921740,9.8831,3270.7,3269.9,10.1]
[1642394921741,2.23567,3270.0,3269.9,10.1]
[1642394921940,2.23567,3270.0,3269.9,15.58041386]
[1642394922141,2.23737527,3270.0,3269.9,10.1]
[1642394922542,2.23737527,3270.0,3269.9,11.62866]
[1642394923346,2.23737527,3270.0,3269.9,19.37866]
[1642394923541,2.23737527,3270.0,3269.9,11.62866]
[1642394923542,1.29504826,3270.0,3269.9,11.62866]
[1642394925389,1.29504826,3270.0,3269.9,16.57866]
[1642394927391,1.29504826,3270.0,3269.9,34.55866]
[1642394927592,1.29504826,3270.0,3269.9,1.52866]
[1642394927795,1.29504826,3270.0,3269.6,2.34010946]
[1642394927994,1.29504826,3270.0,3269.8,0.76448]
[1642394928842,1.29504826,3270.0,3269.6,1.57556946]
[1642394929248,1.29504826,3270.0,3269.6,21.08445946]
[1642394929446,1.29504826,3270.0,3269.7,0.76443]
[1642394930245,1.29504826,3270.0,3269.9,16.26439105]
[1642394930846,1.29504826,3270.0,3269.9,34.24439105]
[1642394932499,1.441,3271.2,3270.1,0.76432]
[1642394932700,1.441,3271.2,3270.4,0.76432]
[1642394932900,0.00625266,3271.1,3270.4,0.76432]
[1642394933402,0.00568424,3271.0,3270.4,0.76432]
[1642394933807,1.741,3271.2,3270.0,5.94533]
[1642394933808,0.00511581,3270.9,3270.0,5.94533]
[1642394934203,0.00454739,3270.8,3270.0,5.94533]
[1642394934604,0.00397897,3270.7,3270.0,5.94533]
[1642394935011,0.00341054,3270.6,3270.0,5.94533]
[1642394935405,0.00284212,3270.5,3270.0,5.94533]
[1642394935605,0.00284212,3270.5,3270.0,1.1735]
[1642394935803,5.77547574,3270.7,3270.0,1.1735]
[1642394935804,0.00227369,3270.4,3270.0,1.1735]
[1642394936249,0.00170527,3270.3,3270.0,1.1735]
[1642394936644,0.00113685,3270.2,3270.0,1.1735]
[1642394937050,0.00341054,3270.6,3270.0,1.1735]
[1642394937445,0.00284212,3270.5,3270.0,1.1735]
[1642394937847,0.00227369,3270.4,3270.0,1.1735]
[1642394938346,0.00170527,3270.3,3270.0,1.1735]
[1642394938849,0.00113685,3270.2,3270.0,1.1735]
[1642394939156,0.00397897,3270.7,3270.0,1.1735]
[1642394939546,0.00341054,3270.6,3270.0,1.1735]
[1642394939993,0.00284212,3270.5,3270.0,1.1735]
[1642394940394,2.15801996,3271.2,3270.0,1.1735]
[1642394940395,0.00227369,3270.4,3270.0,1.1735]
[1642394940594,0.00227369,3270.4,3270.0,2.70222]
[1642394940797,0.00170527,3270.3,3270.0,2.70222]
[1642394941097,0.00113685,3270.2,3270.0,2.70222]
[1642394941499,0.00511581,3270.9,3270.0,2.70222]
[1642394941801,0.00454739,3270.8,3270.0,2.70222]
[1642394942199,0.00397897,3270.7,3270.0,2.70222]
[1642394942696,10.59586325,3271.3,3270.0,2.70222]
[1642394942697,0.00341054,3270.6,3270.0,2.70222]
[1642394942996,0.00284212,3270.5,3270.0,2.70222]
[1642394943398,0.00227369,3270.4,3270.0,2.70222]
[1642394943839,0.00170527,3270.3,3270.0,2.70222]
[1642394944242,0.00113685,3270.2,3270.0,21.44657]
[1642394944444,0.00113685,3270.2,3270.1,25.93]
[1642394944640,6.18,3271.4,3270.1,25.93]
[1642394944641,0.00682108,3271.2,3270.1,25.93]
[1642394944839,6.18,3271.4,3270.2,12.1]
[1642394945041,0.00511581,3271.1,3270.3,1.5285]
[1642394945440,0.00454739,3271.0,3270.4,0.76425]
[1642394945844,0.00397896,3270.9,3270.4,1.5285]
[1642394946241,0.00341054,3270.8,3270.4,1.5285]
[1642394946640,0.00284212,3270.7,3270.4,1.5285]
[1642394947046,0.00227369,3270.6,3270.4,1.5285]
[1642394947490,0.00170527,3270.5,3270.4,1.5285]
[1642394948291,0.00170527,3270.5,3270.4,36.55542924]
[1642394948492,0.00170527,3270.5,3270.4,32.09425]
[1642394949294,0.00170527,3270.5,3270.4,33.12678972]
[1642394952741,6.13170527,3271.4,3270.5,7.3]
[1642394952942,1.34788588,3271.7,3270.5,7.3]
[1642394953141,0.00454739,3271.3,3270.5,7.3]
[1642394953343,0.00454739,3271.3,3270.5,8.52]
[1642394953541,0.00397896,3271.2,3270.5,8.52]
[1642394953744,0.00397896,3271.2,3270.7,0.76421]
[1642394953943,1.64788588,3271.7,3270.7,0.76421]
[1642394953944,0.00341054,3271.1,3270.7,0.76421]
[1642394954381,0.00284212,3271.0,3270.7,19.50845]
[1642394954801,0.00227369,3270.9,3270.7,19.50845]
[1642394955190,0.00170527,3270.8,3270.7,19.50845]
[1642394955489,0.00625266,3270.8,3270.7,19.50845]
[1642394955689,0.00625266,3270.8,3270.7,23.97813419]
[1642394955889,6.18,3271.8,3270.8,14.85]
[1642394956091,6.18,3271.8,3271.1,0.7641]
[1642394956490,6.18,3271.8,3271.2,0.0022737]
[1642394956893,6.13,3271.8,3271.2,0.0022737]
[1642394957297,3.7205,3271.9,3271.2,0.0022737]
[1642394957493,1.1269,3272.1,3271.2,0.7663637]
[1642394957693,0.00113684,3271.8,3271.3,0.05101546]
[1642394957894,0.00113684,3271.8,3271.4,0.76406]
[1642394958094,1.30341054,3272.2,3271.4,0.76519685]
[1642394958542,0.00284211,3272.1,3271.4,0.76519685]
[1642394958942,0.00227369,3272.0,3271.4,0.76519685]
[1642394959344,0.00170527,3271.9,3271.4,0.76519685]
[1642394959544,0.00170527,3271.9,3271.5,0.76406]
[1642394959745,0.00284211,3272.1,3271.6,0.07890699]
[1642394960150,0.00227369,3272.0,3271.5,0.76406]
[1642394960549,0.00170527,3271.9,3271.5,0.76406]
[1642394960947,0.00284211,3272.1,3271.5,0.76406]
[1642394961348,0.00227369,3272.0,3271.5,0.76406]
[1642394961748,0.00170527,3271.9,3271.5,0.76406]
[1642394962149,0.00170527,3271.9,3271.4,0.00113685]
[1642394962696,0.00170527,3271.9,3271.4,0.08628168]
[1642394962895,0.00170527,3271.9,3271.3,0.05136923]
[1642394963293,0.00170527,3271.9,3271.4,0.00113685]
[1642394963693,0.00170527,3271.9,3271.3,0.00170527]
[1642394963894,0.00170527,3271.9,3271.4,0.08743822]
[1642394964094,0.00170527,3271.9,3271.3,0.00170527]
[1642394964095,0.00170527,3271.9,3271.3,0.76580527]
[1642394964494,0.00170527,3271.9,3271.4,0.00113685]
[1642394965697,0.00170527,3271.9,3271.3,0.00170527]
[1642394966140,0.00170527,3271.9,3271.4,0.07577407]
[1642394966541,0.00170527,3271.9,3271.3,0.76580527]
[1642394966742,0.00170527,3271.9,3271.3,5.90160968]